fUSD/lending_fUSD_20241227
["ID","MTS","AMOUNT","RATE_DAILY","PERIOD"]
[346879933,1735338640575,-500.0,0.00010736,2]
[346879934,1735338640584,-500.0,0.00010736,2]
[346879935,1735338640596,-500.0,0.00010736,2]
[346879936,1735338640605,-500.0,0.00010736,2]
[346879937,1735338640615,-500.0,0.00010736,2]
[346879938,1735338640624,-500.0,0.00010736,2]
[346879939,1735338640633,-500.0,0.00010736,2]
[346879940,1735338640643,-500.0,0.00010736,2]
[346879941,1735338640652,-500.0,0.00010736,2]
[346879942,1735338640661,-500.0,0.00010736,2]
[346879943,1735338640671,-500.0,0.00010736,2]
[346879944,1735338640680,-500.0,0.00010736,2]
[346879945,1735338640691,-500.0,0.00010736,2]
[346879946,1735338640700,-500.0,0.00010736,2]
[346879947,1735338640709,-511.1,0.00010736,2]
[346879948,1735338640718,-500.0,0.00010736,2]
[346879949,1735338640727,-500.0,0.00010736,2]
[346879950,1735338640736,-500.0,0.00010736,2]
[346879951,1735338640746,-500.0,0.00010736,2]
[346879952,1735338640755,-500.0,0.00010736,2]
[346879953,1735338640766,-500.0,0.00010736,2]
[346879954,1735338640776,-500.0,0.00010736,2]
[346879955,1735338640785,-500.0,0.00010736,2]
[346879956,1735338640795,-500.0,0.00010736,2]
[346879957,1735338640804,-500.0,0.00010736,2]
[346879958,1735338640814,-500.0,0.00010736,2]
[346879959,1735338640823,-500.0,0.00010736,2]
[346879960,1735338640832,-500.0,0.00010736,2]
[346879961,1735338640842,-500.0,0.00010736,2]
[346879962,1735338640852,-500.0,0.00010736,2]
[346879963,1735338640861,-500.0,0.00010736,2]
[346879964,1735338640871,-500.0,0.00010736,2]
[346879965,1735338640880,-646.59,0.00010736,2]
[346879966,1735338640888,-500.0,0.00010736,2]
[346879967,1735338640898,-500.0,0.00010736,2]
[346879968,1735338640907,-500.0,0.00010736,2]
[346879969,1735338640917,-710.75,0.00010736,2]
[346879970,1735338640927,-533.11,0.00010736,2]
[346879971,1735338640937,-500.0,0.00010736,2]
[346879972,1735338640947,-517.21,0.00010736,2]
[346879973,1735338640956,-378.23,0.00010736,2]
[346879974,1735338640965,-586.29,0.00010736,2]
[346879976,1735338640975,-500.0,0.00010736,2]
[346879978,1735338640985,-1260.3,0.00010736,2]
[346879980,1735338640994,-500.0,0.00010736,2]
[346879982,1735338641004,-500.0,0.00010736,2]
[346879984,1735338641012,-500.0,0.00010736,2]
[346879986,1735338641021,-500.0,0.00010736,2]
[346879988,1735338641031,-547.36,0.00010736,2]
[346879990,1735338641041,-2525.04,0.00010736,2]
[346879992,1735338641051,-500.0,0.00010736,2]
[346879994,1735338641060,-768.08,0.00010736,2]
[346879996,1735338641069,-1007.28,0.00010736,2]
[346879998,1735338641078,-608.52,0.00010736,2]
[346880000,1735338641087,-500.0,0.00010736,2]
[346880002,1735338641097,-500.0,0.00010736,2]
[346880004,1735338641106,-1653.69,0.00010736,2]
[346880006,1735338641115,-500.0,0.00010736,2]
[346880008,1735338641124,-718.86,0.00010736,2]
[346880010,1735338641134,-500.0,0.00010736,2]
[346880012,1735338641144,-500.0,0.00010736,2]
[346880014,1735338641154,-500.0,0.00010736,2]
[346880016,1735338641163,-1529.74,0.00010736,2]
[346880018,1735338641174,-500.0,0.00010736,2]
[346880020,1735338641184,-500.0,0.00010736,2]
[346880022,1735338641193,-500.0,0.00010736,2]
[346880024,1735338641203,-500.0,0.00010736,2]
[346880026,1735338641212,-500.0,0.00010736,2]
[346880028,1735338641221,-500.0,0.00010736,2]
[346880030,1735338641230,-500.0,0.00010736,2]
[346880031,1735338641239,-500.0,0.00010736,2]
[346880032,1735338641248,-500.0,0.00010736,2]
[346880033,1735338641257,-500.0,0.00010736,2]
[346880034,1735338641266,-500.0,0.00010736,2]
[346880035,1735338641274,-500.0,0.00010736,2]
[346880036,1735338641283,-500.0,0.00010736,2]
[346880037,1735338641292,-884.97,0.00010737,2]
[346880038,1735338641301,-1372.874263,0.00010737,2]
[346880039,1735338641309,-1493.593455,0.00010737,2]
[346880041,1735338641319,-500.0,0.00010737,2]
[346880043,1735338641327,-662.72,0.00010737,2]
[346880045,1735338641336,-500.0,0.00010737,2]
[346880047,1735338641346,-500.0,0.00010737,2]
[346880049,1735338641356,-500.0,0.00010737,2]
[346880051,1735338641365,-622.94,0.00010737,2]
[346880053,1735338641373,-500.0,0.00010737,2]
[346880054,1735338641382,-500.0,0.00010737,2]
[346880056,1735338641391,-500.0,0.00010737,2]
[346880058,1735338641400,-500.0,0.00010737,2]
[346880060,1735338641410,-500.0,0.00010737,2]
[346880063,1735338641420,-602.33,0.00010737,2]
[346880064,1735338641430,-500.0,0.00010737,2]
[346880066,1735338641439,-500.0,0.00010737,2]
[346880068,1735338641448,-500.0,0.00010737,2]
[346880071,1735338641458,-500.0,0.00010737,2]
[346880073,1735338641468,-500.0,0.00010737,2]
[346880075,1735338641478,-500.0,0.00010737,2]
[346880077,1735338641487,-500.0,0.00010737,2]
[346880079,1735338641496,-500.0,0.00010737,2]
[346880081,1735338641505,-525.32,0.00010737,2]
[346880082,1735338641515,-500.0,0.00010737,2]
[346880084,1735338641524,-500.0,0.00010737,2]
[346880086,1735338641533,-500.0,0.00010737,2]
[346880089,1735338641542,-500.0,0.00010737,2]
[346880090,1735338641552,-500.0,0.00010737,2]
[346880093,1735338641562,-505.14,0.00010737,2]
[346880095,1735338641571,-500.0,0.00010737,2]
[346880096,1735338641580,-500.0,0.00010737,2]
[346880098,1735338641591,-548.48,0.00010737,2]
[346880100,1735338641603,-639.93,0.00010737,2]
[346880102,1735338641611,-500.0,0.00010737,2]
[346880104,1735338641621,-500.0,0.00010737,2]
[346880106,1735338641631,-500.0,0.00010737,2]
[346880109,1735338641641,-500.0,0.00010737,2]
[346880110,1735338641650,-500.0,0.00010737,2]
[346880113,1735338641659,-500.0,0.00010737,2]
[346880114,1735338641668,-500.0,0.00010737,2]
[346880116,1735338641676,-523.26,0.00010737,2]
[346880118,1735338641685,-500.0,0.00010737,2]
[346880120,1735338641694,-619.35,0.00010737,2]
[346880122,1735338641703,-1198.25,0.00010737,2]
[346880124,1735338641712,-555.65,0.00010737,2]
[346880126,1735338641721,-500.0,0.00010737,2]
[346880128,1735338641731,-500.0,0.00010737,2]
[346880130,1735338641740,-500.0,0.00010737,2]
[346880132,1735338641750,-6960.71,0.00010737,2]
[346880134,1735338641759,-500.0,0.00010737,2]
[346880136,1735338641769,-560.97,0.00010737,2]
[346880138,1735338641779,-500.0,0.00010737,2]
[346880140,1735338641788,-581.6,0.00010737,2]
[346880142,1735338641797,-500.0,0.00010737,2]
[346880144,1735338641806,-1307.21,0.00010737,2]
[346880146,1735338641817,-500.0,0.00010737,2]
[346880148,1735338641826,-500.0,0.00010737,2]
[346880150,1735338641835,-575.55,0.00010737,2]
[346880152,1735338641844,-500.0,0.00010737,2]
[346880154,1735338641854,-500.0,0.00010737,2]
[346880156,1735338641863,-1613.08,0.00010737,2]
[346880158,1735338641873,-500.0,0.00010737,2]
[346880160,1735338641882,-500.0,0.00010737,2]
[346880162,1735338641892,-643.18,0.00010737,2]
[346880164,1735338641901,-500.0,0.00010737,2]
[346880166,1735338641911,-3058.51,0.00010737,2]
[346880168,1735338641922,-706.21,0.00010737,2]
[346880170,1735338641931,-500.0,0.00010737,2]
[346880172,1735338641941,-500.0,0.00010737,2]
[346880174,1735338641951,-500.0,0.00010737,2]
[346880176,1735338641960,-500.0,0.00010737,2]
[346880178,1735338641969,-676.11,0.00010737,2]
[346880180,1735338641978,-500.0,0.00010737,2]
[346880182,1735338641988,-705.46,0.00010737,2]
[346880184,1735338641997,-676.06,0.00010737,2]
[346880186,1735338642006,-1057.1,0.00010737,2]
[346880188,1735338642016,-500.0,0.00010737,2]
[346880190,1735338642025,-500.0,0.00010737,2]
[346880192,1735338642035,-500.0,0.00010738,2]
[346880194,1735338642044,-500.0,0.00010738,2]
[346880196,1735338642053,-500.0,0.00010738,2]
[346880198,1735338642063,-500.0,0.00010738,2]
[346880200,1735338642072,-500.0,0.00010738,2]
[346880202,1735338642081,-648.23039396,0.00010738,2]
[346880204,1735338642091,-500.0,0.00010738,2]
[346880206,1735338642101,-500.0,0.00010738,2]
[346880208,1735338642110,-500.0,0.00010738,2]
[346880210,1735338642120,-500.0,0.00010738,2]
[346880212,1735338642129,-500.0,0.00010738,2]
[346880214,1735338642139,-500.0,0.00010738,2]
[346880216,1735338642148,-500.0,0.00010738,2]
[346880218,1735338642157,-500.0,0.00010738,2]
[346880220,1735338642166,-500.0,0.00010738,2]
[346880222,1735338642175,-500.0,0.00010738,2]
[346880224,1735338642184,-500.0,0.00010738,2]
[346880226,1735338642193,-500.0,0.00010738,2]
[346880228,1735338642203,-500.0,0.00010738,2]
[346880230,1735338642211,-500.0,0.00010738,2]
[346880232,1735338642220,-500.0,0.00010738,2]
[346880234,1735338642230,-500.0,0.00010738,2]
[346880236,1735338642239,-500.0,0.00010738,2]
[346880237,1735338642248,-500.0,0.00010738,2]
[346880239,1735338642257,-500.0,0.00010738,2]
[346880241,1735338642266,-500.0,0.00010738,2]
[346880243,1735338642275,-500.0,0.00010738,2]
[346880245,1735338642285,-500.0,0.00010738,2]
[346880247,1735338642294,-500.0,0.00010738,2]
[346880249,1735338642303,-454.31879608,0.00010738,2]
[346880252,1735338642313,-1419.58,0.00010738,2]
[346880254,1735338642322,-500.0,0.00010738,2]
[346880255,1735338642331,-500.0,0.00010738,2]
[346880257,1735338642340,-500.0,0.00010738,2]
[346880259,1735338642350,-500.0,0.00010738,2]
[346880261,1735338642359,-500.0,0.00010738,2]
[346880264,1735338642369,-500.0,0.00010738,2]
[346880266,1735338642378,-594.53820165,0.00010738,2]
[346880268,1735338642389,-500.0,0.00010738,2]
[346880270,1735338642398,-445.45934082,0.00010738,2]
[346880272,1735338642407,-500.0,0.00010738,2]
[346880274,1735338642417,-500.0,0.00010738,2]
[346880276,1735338642426,-446.37643109,0.00010738,2]
[346880278,1735338642436,-500.0,0.00010738,2]
[346880280,1735338642445,-500.0,0.00010738,2]
[346880282,1735338642455,-500.0,0.00010738,2]
[346880284,1735338642464,-500.0,0.00010738,2]
[346880286,1735338642473,-500.0,0.00010738,2]
[346880288,1735338642482,-500.0,0.00010738,2]
[346880291,1735338642492,-500.0,0.00010738,2]
[346880294,1735338642501,-500.0,0.00010738,2]
[346880296,1735338642510,-500.0,0.00010738,2]
[346880298,1735338642520,-1007.84,0.00010738,2]
[346880300,1735338642529,-500.0,0.00010738,2]
[346880302,1735338642543,-1189.59,0.00010738,2]
[346880304,1735338642553,-1121.98,0.00010738,2]
[346880306,1735338642562,-500.0,0.00010738,2]
[346880308,1735338642571,-500.0,0.00010738,2]
[346880310,1735338642580,-297.2,0.00010738,2]
[346880312,1735338642595,-500.0,0.00010738,2]
[346880314,1735338642604,-816.93,0.00010738,2]
[346880316,1735338642614,-500.0,0.00010738,2]
[346880318,1735338642623,-1108.43,0.00010738,2]
[346880320,1735338642632,-516.5,0.00010738,2]
[346880322,1735338642642,-500.0,0.00010738,2]
[346880324,1735338642652,-866.84,0.00010738,2]
[346880326,1735338642662,-511.92,0.00010738,2]
[346880328,1735338642672,-500.0,0.00010738,2]
[346880330,1735338642681,-500.0,0.00010738,2]
[346880332,1735338642690,-786.89,0.00010738,2]
[346880334,1735338642699,-1296.68,0.00010738,2]
[346880337,1735338642709,-500.0,0.00010738,2]
[346880340,1735338642718,-500.0,0.00010738,2]
[346880343,1735338642727,-500.0,0.00010738,2]
[346880345,1735338642737,-395.95,0.00010738,2]
[346880347,1735338642747,-500.0,0.00010738,2]
[346880349,1735338642757,-866.91,0.00010738,2]
[346880351,1735338642766,-378.01,0.00010738,2]
[346880353,1735338642776,-1756.75,0.00010738,2]
[346880355,1735338642785,-500.0,0.00010738,2]
[346880357,1735338642794,-500.0,0.00010738,2]
[346880359,1735338642803,-636.44,0.00010738,2]
[346880361,1735338642813,-500.0,0.00010738,2]
[346880362,1735338642822,-500.0,0.00010738,2]
[346880365,1735338642831,-500.0,0.00010738,2]
[346880366,1735338642840,-500.0,0.00010738,2]
[346880369,1735338642850,-500.0,0.00010738,2]
[346880370,1735338642859,-517.42,0.00010738,2]
[346880372,1735338642871,-500.0,0.00010738,2]
[346880374,1735338642883,-500.0,0.00010738,2]
[346880377,1735338642894,-2474.39,0.00010738,2]
[346880378,1735338642904,-500.0,0.00010738,2]
[346880381,1735338642914,-762.09,0.00010738,2]
[346880383,1735338642924,-500.0,0.00010738,2]
[346880385,1735338642934,-500.0,0.00010738,2]
[346880386,1735338642943,-500.0,0.00010738,2]
[346880389,1735338642953,-500.0,0.00010738,2]
[346880391,1735338642963,-500.0,0.00010738,2]
[346880393,1735338642972,-332.72489096,0.00010738,2]
[346880395,1735338642981,-500.0,0.00010738,2]
[346880397,1735338642990,-500.0,0.00010738,2]
[346880399,1735338643000,-500.0,0.00010738,2]
[346880401,1735338643010,-14869.89,0.00010738,2]
[346880403,1735338643019,-500.0,0.00010738,2]
[346880405,1735338643028,-500.0,0.00010738,2]
[346880407,1735338643037,-500.0,0.00010738,2]
[346880409,1735338643047,-500.0,0.00010738,2]
[346880411,1735338643056,-375.15215946,0.00010738,2]
[346880413,1735338643065,-1917.06,0.00010738,2]
[346880415,1735338643075,-87.40352892,0.00010738,2]
[346880450,1735338643399,-412.59647108,0.00010738,2]
[346880452,1735338643409,-638.75934142,0.00010738,2]
[346880454,1735338643420,-1760.70065858,0.00010738,2]
[346880456,1735338643430,-417.30984612,0.00010738,2]
[346880460,1735338643460,-82.69015388,0.00010738,2]
[346880462,1735338643471,-500.0,0.00010738,2]
[346880464,1735338643483,-500.0,0.00010738,2]
[346880466,1735338643493,-964.34,0.00010738,2]
[346880468,1735338643503,-412.11445418,0.00010738,2]
[346880471,1735338643514,-87.88554582,0.00010738,2]
[346880473,1735338643524,-397.21345422,0.00010738,2]
[346880475,1735338643538,-102.78654578,0.00010738,2]
[346880477,1735338643547,-500.0,0.00010738,2]
[346880479,1735338643557,-1105.64,0.00010738,2]
[346880481,1735338643566,-225.39345422,0.00010738,2]
[346880483,1735338643578,-274.60654578,0.00010738,2]
[346880485,1735338643598,-394.79345422,0.00010738,2]
[346880488,1735338643611,-105.20654578,0.00010738,2]
[346880489,1735338643622,-500.0,0.00010738,2]
[346880492,1735338643631,-57.75345522,0.00010738,2]
[346880494,1735338643644,-442.24654478,0.00010738,2]
[346880496,1735338643653,-500.0,0.00010738,2]
[346880498,1735338643662,-992.75345522,0.00010738,2]
[346880544,1735338644117,-1605.23654478,0.00010738,2]
[346880546,1735338644128,-500.0,0.00010738,2]
[346880547,1735338644137,-389.76345521,0.00010738,2]
[346880550,1735338644153,-110.23654479,0.00010738,2]
[346880551,1735338644163,-500.0,0.00010738,2]
[346880553,1735338644173,-764.62,0.00010738,2]
[346880555,1735338644182,-500.0,0.00010738,2]
[346880556,1735338644192,-1535.25,0.00010738,2]
[346880558,1735338644201,-500.0,0.00010738,2]
[346880560,1735338644211,-4978.20874621,0.00010738,2]
[346880562,1735338644222,-6137.46125379,0.00010738,2]
[346880564,1735338644231,-1229.2,0.00010738,2]
[346880565,1735338644241,-500.0,0.00010738,2]
[346880567,1735338644250,-500.0,0.00010738,2]
[346880569,1735338644260,-500.0,0.00010738,2]
[346880571,1735338644269,-500.0,0.00010738,2]
[346880573,1735338644279,-500.0,0.00010738,2]
[346880574,1735338644288,-500.0,0.00010738,2]
[346880576,1735338644296,-500.0,0.00010738,2]
[346880578,1735338644305,-500.0,0.00010738,2]
[346880579,1735338644314,-1340.33,0.00010738,2]
[346880581,1735338644323,-500.0,0.00010738,2]
[346880583,1735338644332,-3363.23103801,0.00010738,2]
[346880585,1735338644350,-854.55749319,0.00010738,2]
[346880588,1735338644375,-966.14,0.00010737,2]
[346880590,1735338644384,-334.4514688,0.00010738,2]
[346880592,1735338644394,-384.4085312,0.00010738,2]
[346880689,1735338646028,-500.0,0.0001049,2]
[346880690,1735338646037,-65.134902,0.00010738,2]
[346880691,1735338646049,-50.4565668,0.00010738,2]
[346880692,1735338646059,-500.0,0.00010738,2]
[346880693,1735338646069,-59.06774662,0.00010738,2]
[346880694,1735338646080,-440.93225338,0.00010738,2]
[346880695,1735338646090,-500.0,0.00010738,2]
[346880696,1735338646099,-1327.14,0.00010738,2]
[346880697,1735338646110,-500.0,0.00010738,2]
[346880698,1735338646119,-1076.97,0.00010738,2]
[346880699,1735338646130,-500.0,0.00010738,2]
[346880700,1735338646143,-156.33423724,0.00010738,2]
[346880701,1735338646158,-440.0000011,0.00010738,2]
[346880702,1735338646170,-50.17882763,0.00010738,2]
[346880703,1735338646179,-500.0,0.00010738,2]
[346880704,1735338646189,-599.69218931,0.00010738,2]
[346880705,1735338646200,-1422.17781069,0.00010738,2]
[346880706,1735338646210,-415.61263628,0.00010738,2]
[346880707,1735338646221,-84.38736372,0.00010738,2]
[346880708,1735338646232,-500.0,0.00010738,2]
[346880709,1735338646241,-985.3,0.00010738,2]
[346880710,1735338646250,-2007.67,0.00010739,2]
[346880711,1735338646259,-1357.64263628,0.00010739,2]
[346880824,1735339206011,300.0,8.995e-05,2]
[346880825,1735339384006,502.78,8.98e-05,2]
[346880826,1735339414735,1500.0,8.959e-05,2]
[346880827,1735339422344,161.73,8.959e-05,2]
[346880828,1735339473805,250.0,8.964e-05,2]
[346880829,1735339591238,23900.0,8.948e-05,2]
[346880830,1735339596183,5608.98,9.589e-05,2]
[346880831,1735339627292,841.47,8.219e-05,2]
[346880835,1735339673810,200.0,9.009e-05,2]
[346880836,1735339689039,1000.0,9.009e-05,2]
[346880846,1735339751539,981.97,9.048e-05,2]
[346881235,1735339773583,2000.0,8.386e-05,2]
[346881380,1735339796235,508.45,8.982e-05,2]
[346881392,1735339803549,500.0,9.482e-05,2]
[346881418,1735339831926,-250.0,9.701e-05,2]
[346881419,1735339831936,-552.3,9.71e-05,2]
[346881420,1735339831945,-552.3,9.712e-05,2]
[346881421,1735339831954,-552.3,9.715e-05,2]
[346881422,1735339831963,-552.3,9.717e-05,2]
[346881423,1735339831972,-181.16092209,9.718e-05,2]
[346881424,1735339831982,-1475.065326,9.718e-05,2]
[346881425,1735339831991,-552.3,9.72e-05,2]
[346881426,1735339832001,-552.3,9.723e-05,2]
[346881427,1735339832011,-552.3,9.725e-05,2]
[346881428,1735339832021,-552.3,9.728e-05,2]
[346881429,1735339832031,-2142.78,9.728e-05,2]
[346881430,1735339832041,-150.99,9.728e-05,2]
[346881431,1735339832050,-601.97442859,9.728e-05,2]
[346881432,1735339832062,-2964.68685075,9.728e-05,2]
[346881433,1735339832087,-6394.76872066,9.728e-05,2]
[346881434,1735339832096,-150.99,9.728e-05,2]
[346881435,1735339832106,-462.8,9.728e-05,2]
[346881436,1735339832115,-1535.27,9.728e-05,2]
[346881437,1735339832125,-299.99,9.728e-05,2]
[346881438,1735339832135,-999.99,9.728e-05,2]
[346881439,1735339832145,-2119.2,9.728e-05,2]
[346881440,1735339832157,-9999.99,9.728e-05,2]
[346881441,1735339832167,-1109.86,9.728e-05,2]
[346881442,1735339832176,-153.5524883,9.73e-05,2]
[346881443,1735339832188,-398.7475117,9.73e-05,2]
[346881444,1735339832198,-552.3,9.733e-05,2]
[346881445,1735339832208,-552.3,9.735e-05,2]
[346881446,1735339832217,-552.3,9.738e-05,2]
[346881447,1735339832227,-552.3,9.74e-05,2]
[346881448,1735339832236,-552.3,9.743e-05,2]
[346881449,1735339832247,-552.3,9.745e-05,2]
[346881450,1735339832256,-552.3,9.748e-05,2]
[346881451,1735339832266,-552.3,9.751e-05,2]
[346881452,1735339832275,-552.3,9.753e-05,2]
[346881453,1735339832285,-552.3,9.756e-05,2]
[346881454,1735339832294,-1703.05702532,9.756e-05,2]
[346881456,1735339832305,-296.94297468,9.756e-05,2]
[346881457,1735339832315,-283.93593599,9.758e-05,2]
[346881458,1735339832337,-268.36406401,9.758e-05,2]
[346881459,1735339832347,-250.0,9.805e-05,2]
[346881460,1735339832356,-200.0,9.869e-05,2]
[346881461,1735339832365,-249.07,0.00010037,2]
[346881462,1735339832375,-248.95,0.00010037,2]
[346881463,1735339832384,-11496.59839018,0.00010077,2]
[346881464,1735339832395,-409.8822205,0.00010077,2]
[346881465,1735339832425,-254.46,0.00010077,2]
[346881467,1735339832437,-342.16270135,0.00010077,2]
[346881470,1735339832449,-28295.83221973,0.00010077,2]
[346881472,1735339832460,-9496.06446824,0.00010077,2]
[346881474,1735339832470,-508.45,0.00010104,2]
[346881476,1735339832479,-250.21,0.00010105,2]
[346881478,1735339832489,-247.58,0.00010105,2]
[346881480,1735339832499,-248.5,0.00010105,2]
[346881482,1735339832509,-252.98,0.00010105,2]
[346881484,1735339832518,-251.78,0.00010105,2]
[346881486,1735339832527,-245.53,0.00010105,2]
[346881488,1735339832536,-247.22,0.00010105,2]
[346881490,1735339832546,-252.0,0.00010105,2]
[346881492,1735339832555,-1000.0,0.00010135,2]
[346881494,1735339832564,-343.23,0.00010137,2]
[346881496,1735339832574,-179.53,0.00010137,2]
[346881498,1735339832583,-367.91147862,0.00010264,2]
[346881500,1735339832595,-349.42672138,0.00010264,2]
[346881502,1735339832604,-500.0,0.00010289,2]
[346881504,1735339832613,-219.4065,0.00010319,2]
[346881506,1735339832622,-311.1479,0.00010319,2]
[346881507,1735339832631,-1714.41968458,0.00010364,2]
[346881508,1735339832681,-719.68076002,0.00010364,2]
[346881509,1735339832691,-785.97832779,0.00010364,2]
[346881722,1735339837893,-3373.02722761,0.00010364,2]
[346881723,1735339837903,-13784.56483249,0.00010364,2]
[346881724,1735339838000,-4173.9,0.00010364,2]
[346881725,1735339838027,-415.43111736,0.00010364,2]
[346881726,1735339838134,-577.56498034,0.00010364,2]
[346881727,1735339838146,-9763.4,0.00010364,2]
[346881728,1735339838164,-811.351313,0.00010364,2]
[346881729,1735339838187,-7525.77735681,0.00010364,2]
[346881730,1735339838197,-8251.30845478,0.00010364,2]
[346881731,1735339838211,-1072.35,0.00010364,2]
[346881732,1735339838222,-4827.74473643,0.00010364,2]
[346881839,1735339839448,800.0,8.386e-05,2]
[346881896,1735339840007,-223.07410879,0.00010364,2]
[346881898,1735339840016,-826.0092,0.0001039,2]
[346881899,1735339840027,-638.5404,0.0001039,2]
[346881900,1735339840038,-2893.20323106,0.0001039,2]
[346881901,1735339840056,-2106.79676894,0.0001039,2]
[346881902,1735339840066,-841.47,0.00010423,2]
[346881903,1735339840075,-2709.48,0.00010463,2]
[346881904,1735339840087,-2943.32,0.00010463,2]
[346881905,1735339840097,-3623.77073186,0.00010463,2]
[346881906,1735339840114,-683.52260615,0.00010463,2]
[346881907,1735339840127,-443.19153326,0.00010463,2]
[346881908,1735339840139,-1836.6,0.00010463,2]
[346881910,1735339840154,-3002.84950921,0.00010463,2]
[346881925,1735339840292,-297.85992535,0.00010463,2]
[346882174,1735339842901,-800.0,9.756e-05,2]
[346882177,1735339842911,-4303.17569417,0.00010463,2]
[346882180,1735339842920,-1824.78,0.00010463,2]
[346882182,1735339842930,-928.95,0.00010463,2]
[346882183,1735339842939,-1089.7,0.00010463,2]
[346882184,1735339842949,-1496.74,0.00010463,2]
[346882185,1735339842958,-10189.37,0.00010463,2]
[346882186,1735339842967,-500.0,0.00010463,2]
[346882187,1735339842977,-1050.63,0.00010463,2]
[346882188,1735339842987,-2202.54,0.00010463,2]
[346882189,1735339842996,-943.62,0.00010463,2]
[346882190,1735339843007,-1298.18,0.00010463,2]
[346882191,1735339843016,-2146.5,0.00010464,2]
[346882192,1735339843025,-1447.64,0.00010464,2]
[346882193,1735339843035,-500.0,0.00010464,2]
[346882194,1735339843045,-1000.0,0.00010464,2]
[346882195,1735339843055,-988.07,0.00010464,2]
[346882196,1735339843065,-688.98,0.00010464,2]
[346882197,1735339843075,-500.0,0.00010464,2]
[346882198,1735339843089,-500.0,0.00010473,2]
[346882199,1735339843098,-500.0,0.00010487,2]
[346882200,1735339843108,-1321.03,0.00010487,2]
[346882201,1735339843118,-500.0,0.00010487,2]
[346882202,1735339843128,-4318.04,0.00010487,2]
[346882203,1735339843138,-756.16,0.00010487,2]
[346882204,1735339843148,-1242.09,0.00010487,2]
[346882205,1735339843158,-1623.53,0.00010487,2]
[346882206,1735339843168,-899.69,0.00010487,2]
[346882207,1735339843178,-1750.27,0.00010487,2]
[346882208,1735339843189,-586.9,0.00010487,2]
[346882209,1735339843198,-500.0,0.00010487,2]
[346882210,1735339843207,-541.44,0.00010487,2]
[346882211,1735339843216,-500.0,0.00010487,2]
[346882212,1735339843226,-500.0,0.00010487,2]
[346882213,1735339843235,-510.54,0.00010487,2]
[346882214,1735339843245,-500.0,0.00010487,2]
[346882215,1735339843255,-500.0,0.00010487,2]
[346882216,1735339843265,-500.0,0.00010487,2]
[346882217,1735339843274,-1685.67,0.00010487,2]
[346882218,1735339843283,-500.0,0.00010487,2]
[346882219,1735339843292,-500.0,0.00010487,2]
[346882220,1735339843302,-500.0,0.00010487,2]
[346882221,1735339843311,-500.0,0.00010487,2]
[346882222,1735339843320,-500.0,0.00010487,2]
[346882223,1735339843330,-500.0,0.00010487,2]
[346882224,1735339843339,-527.96,0.00010488,2]
[346882225,1735339843350,-500.0,0.00010488,2]
[346882226,1735339843367,-500.0,0.00010488,2]
[346882227,1735339843377,-500.0,0.00010488,2]
[346882228,1735339843397,-500.0,0.00010488,2]
[346882229,1735339843407,-500.0,0.00010488,2]
[346882230,1735339843416,-500.0,0.00010488,2]